bitfinex/quotes_SOLUSD_20260228
["timestamp","ask_amount","ask_price","bid_price","bid_amount"]
[1772236802221,0.49755549,81.983,81.931,0.48398693]
[1772236804327,0.49755549,81.983,81.93,0.2]
[1772236804501,0.14216157,81.97,81.93,1e-08]
[1772236804706,9.11377456,81.985,81.93,1e-08]
[1772236804707,0.49755549,81.963,81.93,1e-08]
[1772236805424,0.49755549,81.953,81.92,1e-08]
[1772236805929,0.49755549,81.943,81.899,0.48398693]
[1772236806125,0.49755549,81.943,81.901,0.48398693]
[1772236806426,0.49755549,81.943,81.902,0.48398693]
[1772236807725,0.49755549,81.941,81.904,0.48398693]
[1772236809030,12.20241363,81.951,81.912,0.48398693]
[1772236809737,30.49785803,81.973,81.923,42.7230448]
[1772236810035,30.49785803,81.973,81.924,0.48398693]
[1772236810217,0.49274194,81.972,81.924,0.48398693]
[1772236810631,0.49274194,81.972,81.93,0.47018032]
[1772236810937,12.19839469,81.978,81.932,0.47018032]
[1772236811123,42.69438141,81.978,81.932,0.47018032]
[1772236811325,0.49274194,81.977,81.932,0.47018032]
[1772236812136,0.49274194,81.983,81.934,0.47018032]
[1772236814626,0.49274194,81.981,81.936,0.47018032]
[1772236816621,42.6922983,81.982,81.936,0.47018032]
[1772236816622,0.49274194,81.979,81.936,0.47018032]
[1772236817344,42.69333983,81.98,81.9,0.2]
[1772236817345,0.49274194,81.973,81.906,0.28432314]
[1772236817527,0.49274194,81.965,81.9,0.2]
[1772236817727,0.49274194,81.953,81.9,0.2]
[1772236819449,0.49274194,81.951,81.901,0.47018032]
[1772236821948,0.49274194,81.949,81.901,0.47018032]
[1772236823845,0.49274194,81.941,81.901,0.47018032]
[1772236825455,42.7141811,81.94,81.901,0.47018032]
[1772236825660,0.49274194,81.939,81.901,0.47018032]
[1772236827551,0.49274194,81.939,81.9,0.2]
[1772236827753,0.49274194,81.937,81.9,0.2]
[1772236830258,0.49274194,81.935,81.9,0.2]
[1772236833339,0.49274194,81.933,81.9,0.2]
[1772236834767,0.49274194,81.933,81.901,0.47018032]
[1772236835064,48.81025015,81.95,81.901,0.47018032]
[1772236835065,12.2039028,81.941,81.902,0.47018032]
[1772236835266,12.69560229,81.948,81.904,0.47018032]
[1772236835446,0.49274194,81.947,81.904,0.47018032]
[1772236835645,31.00249896,81.941,81.904,0.47018032]
[1772236835859,0.49274194,81.94,81.904,0.47018032]
[1772236837475,12.20420068,81.939,81.904,0.47018032]
[1772236838268,43.20744433,81.939,81.904,0.47018032]
[1772236839066,42.71470239,81.939,81.905,0.47018032]
[1772236839462,0.49274194,81.94,81.905,0.47018032]
[1772236842475,0.46166478,81.938,81.905,0.47018032]
[1772236844068,0.46166478,81.938,81.9,0.2]
[1772236844665,0.46166478,81.932,81.888,0.45612776]
[1772236844857,0.46166478,81.932,81.881,0.45612776]
[1772236845460,0.46166478,81.932,81.882,0.45612776]
[1772236845955,0.46166478,81.922,81.881,0.45612776]
[1772236847365,152.55623221,81.937,81.881,0.45612776]
[1772236847366,0.46166478,81.917,81.881,0.45612776]
[1772236849870,0.46166478,81.915,81.881,0.45612776]
[1772236850253,42.72669563,81.916,81.881,0.45612776]
[1772236850551,0.46166478,81.934,81.891,0.45612776]
[1772236850751,0.46166478,81.955,81.893,0.45612776]
[1772236851076,0.46166478,81.952,81.893,0.45612776]
[1772236856964,0.46166478,81.947,81.895,0.45612776]
[1772236859269,61.00834594,81.956,81.897,0.45612776]
[1772236859270,0.46166478,81.945,81.897,0.45612776]
[1772236860871,3.69383402,81.953,81.899,0.45612776]
[1772236861073,48.79839169,81.97,81.913,0.45612776]
[1772236861074,12.20203948,81.954,81.913,0.45612776]
[1772236861360,12.20203948,81.954,81.91,0.45612776]
[1772236861361,0.46166478,81.95,81.91,0.45612776]
[1772236861573,0.46166478,81.95,81.883,0.45612776]
[1772236865363,0.46166478,81.945,81.892,0.45612776]
[1772236867383,0.46166478,81.943,81.904,0.45612776]
[1772236868480,0.46166478,81.957,81.909,0.28432314]
[1772236868683,0.46166478,81.971,81.922,0.45612776]
[1772236868868,3.69383402,81.969,81.922,0.45612776]
[1772236869070,0.46166478,81.968,81.922,0.45612776]
[1772236869270,0.46166478,81.964,81.924,0.45612776]
[1772236873166,30.49592754,81.979,81.928,0.46099036]
[1772236873371,30.49592754,81.979,81.932,0.46099036]
[1772236873372,12.19839469,81.978,81.932,0.46099036]
[1772236873569,48.76263153,82.031,81.941,0.28432314]
[1772236873570,3.69383402,81.992,81.941,0.28432314]
[1772236873885,12.67565514,81.992,81.952,0.46099036]
[1772236874070,0.47927966,81.991,81.952,0.46099036]
[1772236875291,60.96169905,82.019,81.954,0.46099036]
[1772236875292,0.47927966,81.998,81.954,0.46099036]
[1772236876395,12.19556813,81.997,81.956,0.46099036]
[1772236877092,12.67484779,81.997,81.956,0.46099036]
[1772236877474,0.47927966,81.996,81.958,0.46099036]
[1772236879092,0.47927966,81.996,81.962,0.46099036]
[1772236879477,0.47927966,81.996,81.964,0.46099036]
[1772236881597,30.48413771,82.01,81.966,0.46099036]
[1772236881598,0.47927966,81.995,81.966,0.46099036]
[1772236884607,0.47927966,81.994,81.968,0.46099036]
[1772236885503,0.47927966,81.994,81.97,0.46099036]
[1772236887404,0.47927966,82.009,81.97,0.46099036]
[1772236887597,0.47927966,82.007,81.972,0.46099036]
[1772236889606,0.47927966,82.005,81.973,12.6601291]
[1772236889805,0.47927966,82.005,81.974,0.46099036]
[1772236894006,0.47927966,82.003,81.974,0.46099036]
[1772236895296,0.47927966,82.003,81.976,0.46099036]
[1772236897494,0.47927966,82.001,81.976,0.46099036]
[1772236897690,0.47927966,82.001,81.97,0.46099036]
[1772236898016,0.47927966,82.001,81.971,0.46099036]
[1772236899410,0.47927966,82.023,81.973,0.46099036]
[1772236899607,0.47927966,82.012,81.944,0.46099036]
[1772236899796,0.47927966,82.0,81.944,0.46099036]
[1772236900103,0.47927966,81.998,81.944,0.46099036]
[1772236901710,0.47724937,81.996,81.946,0.48916897]
[1772236903805,0.47724937,81.994,81.948,0.48916897]
[1772236906016,0.47724937,81.992,81.95,0.48916897]
[1772236909215,0.47724937,81.988,81.94,0.48916897]
[1772236909401,0.47724937,81.987,81.94,0.48916897]
[1772236915013,0.47724937,81.985,81.94,0.48916897]
[1772236917030,0.47724937,81.974,81.935,0.48916897]
[1772236917322,3.69383402,81.975,81.923,0.48916897]
[1772236917323,0.47724937,81.968,81.923,0.48916897]
[1772236917512,0.47724937,81.968,81.924,0.48916897]
[1772236918605,0.47724937,81.962,81.911,0.48916897]
[1772236918807,0.47724937,81.958,81.911,0.48916897]
[1772236919008,103.68635486,81.978,81.906,0.48916897]
[1772236919009,0.47724937,81.948,81.906,0.48916897]
[1772236920905,30.50024235,81.967,81.908,0.28432314]
[1772236921109,0.47724937,81.986,81.919,0.48916897]
[1772236921310,3.69383402,81.984,81.919,0.48916897]
[1772236921523,0.47724937,81.979,81.919,0.48916897]
[1772236923217,0.47724937,81.974,81.921,0.48916897]
[1772236924938,12.19839469,81.978,81.937,0.48916897]
[1772236925124,12.19839469,81.978,81.941,0.48916897]
[1772236925942,0.47724937,81.977,81.941,0.48916897]
[1772236927430,0.47724937,81.975,81.943,0.48916897]
[1772236929636,0.47724937,81.973,81.943,0.48916897]
[1772236930614,12.19842634,81.978,81.945,0.4862973]
[1772236931630,0.47467662,81.984,81.947,0.4862973]
[1772236933023,12.1967581,81.989,81.947,0.4862973]
[1772236933333,0.47467662,82.009,81.949,0.4862973]
[1772236933729,0.47467662,82.009,81.948,0.28432314]
[1772236933730,0.47467662,82.005,81.951,0.4862973]
[1772236933929,0.47467662,82.005,81.959,0.4862973]
[1772236934833,12.66920371,82.004,81.961,0.4862973]
[1772236937641,12.66920371,82.004,81.963,0.4862973]
[1772236937958,0.47467662,82.003,81.963,0.4862973]
[1772236938151,0.47467662,82.003,81.941,5.36086188]
[1772236938152,0.47467662,81.999,81.914,61.03962692]
[1772236938322,0.47467662,81.999,81.923,5.36086188]
[1772236938636,0.47467662,81.989,81.922,30.51683308]
[1772236939624,0.47467662,81.984,81.923,0.28432314]
[1772236940242,0.47467662,81.984,81.924,0.07334206]
[1772236941522,0.47467662,81.982,81.924,0.07334206]
[1772236943449,42.69281906,81.981,81.924,0.07334206]
[1772236943748,0.47467662,81.98,81.924,0.07334206]
[1772236945627,0.47467662,81.978,81.924,0.07334206]
[1772236947044,0.47467662,81.976,81.925,0.07334206]
[1772236950127,0.47467662,81.974,81.926,0.07334206]
[1772236950331,0.47467662,81.974,81.927,0.07334206]
[1772236952342,0.47467662,81.968,81.908,0.07334206]
[1772236953453,0.47467662,81.958,81.908,0.07334206]
[1772236954035,0.47467662,81.958,81.883,0.07334206]
[1772236954242,3.69383402,81.97,81.884,0.07334206]
[1772236954243,0.47467662,81.948,81.884,0.07334206]
[1772236956247,0.28432314,81.949,81.884,0.07334206]
[1772236956248,0.47467662,81.946,81.884,0.07334206]
[1772236959256,0.47467662,81.944,81.884,0.07334206]
[1772236960333,0.47467662,81.944,81.883,0.14216157]
[1772236960334,0.49882223,81.938,81.881,0.07334206]
[1772236961841,0.47137543,81.936,81.881,0.07334206]
[1772236963360,0.47137543,81.934,81.881,0.07334206]
[1772236964140,0.47137543,81.95,81.891,0.07334206]
[1772236965660,0.47137543,81.948,81.891,0.07334206]
[1772236966042,0.47137543,81.928,81.876,0.07334206]
[1772236966261,0.47137543,81.928,81.881,0.07334206]
[1772236967248,0.47137543,81.926,81.881,0.07334206]
[1772236967560,0.47137543,81.941,81.882,0.07334206]
[1772236967860,3.69383402,81.959,81.882,0.07334206]
[1772236967861,0.47137543,81.939,81.882,0.07334206]
[1772236970063,0.47137543,81.937,81.882,0.07334206]
[1772236973366,0.47137543,81.935,81.882,0.07334206]
[1772236974663,12.20408364,81.94,81.882,0.07334206]
[1772236974868,0.47137543,81.939,81.882,0.07334206]
[1772236975565,0.47137543,81.937,81.884,0.07334206]
[1772236977760,0.47137543,81.935,81.886,0.07334206]
[1772236980157,0.47137543,81.933,81.888,0.07334206]
[1772236983256,0.47137543,81.931,81.889,0.07334206]
[1772236983673,0.47137543,81.931,81.889,0.3576652]
[1772236983869,0.47137543,81.931,81.889,0.21550363]
[1772236984068,0.47137543,81.931,81.889,0.07334206]
[1772236984464,0.47137543,81.931,81.888,12.21180148]
[1772236985054,0.47137543,81.931,81.889,0.07334206]
[1772236985256,0.47137543,81.929,81.889,0.07334206]
[1772236986788,61.00212342,81.965,81.889,0.07334206]
[1772236986789,0.47137543,81.951,81.897,0.3576652]
[1772236986993,0.47137543,81.951,81.898,0.07334206]
[1772236987368,0.47137543,81.951,81.9,0.07334206]
[1772236987567,12.20174871,81.956,81.9,0.07334206]
[1772236987981,0.47137543,81.958,81.9,0.07334206]
[1772236988370,12.67285295,81.958,81.9,0.07334206]
[1772236988575,0.47137543,81.957,81.9,0.07334206]
[1772236990193,0.47557861,81.955,81.902,0.07334206]
[1772236994894,0.47557861,81.953,81.91,0.07334206]
[1772236995192,0.47557861,81.953,81.911,0.07334206]
[1772236997296,30.500032,81.968,81.911,0.07334206]
[1772236997297,0.47557861,81.951,81.911,0.07334206]
[1772236999497,0.47557861,81.949,81.908,0.07334206]
[1772237007377,0.47557861,81.947,81.908,0.07334206]
[1772237009784,0.47557861,81.947,81.91,0.07334206]
[1772237010805,0.47557861,81.947,81.911,0.07334206]
[1772237022416,0.46914799,81.945,81.91,42.72982541]
[1772237024511,0.28432314,81.997,81.92,0.49837363]
[1772237024698,0.28432314,81.994,81.92,0.49837363]
[1772237026312,0.46914799,81.988,81.922,0.49837363]
[1772237029023,0.28432314,81.982,81.924,0.49837363]
[1772237029227,0.46914799,81.979,81.924,0.49837363]
[1772237030020,42.69438141,81.978,81.925,12.20628623]
[1772237030227,0.46914799,81.977,81.926,0.49837363]
[1772237032717,0.46914799,81.983,81.934,0.49837363]
[1772237032901,0.46914799,81.983,81.94,0.49837363]
[1772237034513,0.46914799,81.989,81.947,0.49837363]
[1772237034823,0.46914799,81.989,81.941,42.71365982]
[1772237034824,0.46914799,81.989,81.949,0.49837363]
[1772237035544,0.46914799,81.988,81.951,0.49837363]
[1772237036418,0.46914799,81.986,81.951,0.49837363]
[1772237037113,0.46914799,81.986,81.95,12.20256253]
[1772237037503,0.46914799,81.984,81.941,12.2039028]
[1772237038113,0.46914799,81.984,81.941,12.70227643]
[1772237038427,0.46914799,81.984,81.942,0.49837363]
[1772237039709,0.46914799,81.984,81.932,30.51280866]
[1772237039710,0.46914799,81.982,81.944,0.49837363]
[1772237040231,0.46914799,81.982,81.95,0.49837363]
[1772237041108,0.46914799,82.002,81.957,0.28432314]
[1772237041329,0.46914799,82.001,81.96,0.49837363]
[1772237041710,0.46914799,81.999,81.962,0.49837363]
[1772237043021,0.46914799,82.017,81.962,0.49837363]
[1772237043211,0.46914799,82.016,81.969,0.28432314]
[1772237043420,0.46914799,82.016,81.97,0.49837363]
[1772237043924,0.46914799,82.014,81.972,0.49837363]
[1772237045629,0.46914799,82.012,81.973,12.19913874]
[1772237046133,0.46914799,82.012,81.974,0.49837363]
[1772237048033,0.46914799,82.01,81.974,0.49837363]
[1772237048337,0.46914799,82.01,81.975,12.19884111]
[1772237048833,0.46914799,82.01,81.976,0.49837363]
[1772237049623,0.46914799,82.01,81.98,0.49837363]
[1772237052937,0.46914799,82.01,81.982,0.45710374]
[1772237054744,0.46914799,82.01,81.983,12.19765073]
[1772237055442,0.46914799,82.01,81.984,0.45710374]
[1772237056424,0.47566808,82.015,81.984,0.45710374]
[1772237056625,0.2,82.03,81.992,0.45710374]
[1772237057426,0.67566808,82.03,81.992,0.45710374]
[1772237058143,0.67566808,82.03,81.994,0.45710374]
[1772237059845,0.47566808,82.029,81.994,0.45710374]
[1772237060141,12.1911078,82.027,81.98,0.45710374]
[1772237060347,0.47566808,82.026,81.98,0.45710374]
[1772237061044,0.47566808,82.026,81.979,0.14216157]
[1772237061045,0.47566808,82.026,81.982,0.45710374]
[1772237061235,0.2,82.03,81.99,0.45710374]
[1772237061934,0.47566808,82.029,81.99,0.45710374]
[1772237062334,0.47566808,82.029,81.971,5.36086188]
[1772237062335,0.47566808,82.027,81.992,0.45710374]
[1772237064346,0.47566808,82.027,81.994,0.45710374]
[1772237064544,0.2,82.03,81.994,0.45710374]
[1772237064935,0.67566808,82.03,81.994,0.45710374]
[1772237065134,0.47566808,82.029,81.994,0.45710374]
[1772237065749,0.47566808,82.028,81.994,0.45710374]
[1772237068333,0.47566808,82.028,81.996,0.45710374]
[1772237069362,0.47566808,82.028,81.998,0.45710374]
[1772237071150,0.47566808,82.028,82.0,0.45710374]
[1772237073657,0.47566808,82.027,82.001,12.19497323]
[1772237075343,0.47566808,82.025,81.993,12.19616308]
[1772237077462,0.47566808,82.025,81.993,0.45710374]
[1772237078363,0.2,82.03,81.999,0.45710374]
[1772237078555,0.47566808,82.029,81.999,0.45710374]
[1772237079549,0.47566808,82.029,82.001,0.45710374]
[1772237081263,0.17566808,82.03,82.01,0.48839732]
[1772237082375,0.17566808,82.03,82.012,0.48839732]
[1772237082557,30.47702641,82.029,81.988,0.48839732]
[1772237082757,12.19081056,82.029,81.99,0.48839732]
[1772237083462,0.45675746,82.028,81.99,0.48839732]
[1772237084548,0.45675746,82.026,81.992,0.48839732]
[1772237086578,0.45675746,82.026,81.994,0.48839732]
[1772237086768,0.45675746,82.024,81.994,0.48839732]
[1772237088660,0.45675746,82.024,81.995,12.1958656]
[1772237088865,0.45675746,82.024,81.996,0.48839732]
[1772237090875,0.45675746,82.024,81.998,0.48839732]
[1772237091466,3.29361704,82.03,81.998,0.48839732]
[1772237091467,0.45675746,82.029,81.998,0.48839732]
[1772237091681,0.45675746,82.029,82.001,0.48839732]
[1772237093564,0.45675746,82.029,82.003,0.48839732]
[1772237095181,0.17566808,82.03,82.011,0.48839732]
[1772237095661,0.17566808,82.03,82.013,0.48839732]
[1772237097175,0.17566808,82.03,82.015,0.48839732]
[1772237099484,0.45675746,82.035,82.017,0.48839732]
[1772237100678,0.45675746,82.035,82.019,0.48839732]
[1772237100877,0.2,82.04,82.019,0.48839732]
[1772237101087,0.45675746,82.039,82.019,0.48839732]
[1772237102191,0.45675746,82.039,82.018,12.19244556]
[1772237103595,0.45675746,82.037,82.014,12.19298792]
[1772237103788,0.45675746,82.029,82.014,12.19298792]
[1772237103967,0.45675746,82.034,81.991,0.48839732]
[1772237104173,0.45675746,82.034,82.001,0.48839732]
[1772237104385,0.45675746,82.029,82.001,0.48839732]
[1772237105465,3.11794896,82.03,81.994,0.48839732]
[1772237105466,0.45675746,82.027,81.994,0.48839732]
[1772237106586,0.45675746,82.027,82.001,0.48839732]
[1772237107091,0.45675746,82.036,82.011,0.48839732]
[1772237110577,0.45675746,82.036,82.013,0.47454155]
[1772237111785,0.45675746,82.036,82.015,0.47454155]
[1772237114090,0.45675746,82.036,82.016,12.19274287]
[1772237116199,0.45675746,82.036,82.016,12.66728442]
[1772237116383,0.45675746,82.036,82.016,0.47454155]
[1772237116589,0.45675746,82.036,82.013,0.47454155]
[1772237116783,0.47177605,82.019,81.991,0.47454155]
[1772237116982,0.47177605,82.019,81.995,0.47454155]
[1772237118299,0.47177605,82.019,81.996,12.19571686]
[1772237118796,0.47177605,82.019,81.997,0.47454155]
[1772237121000,0.47177605,82.019,81.998,12.1954194]
[1772237121695,0.47177605,82.029,81.999,0.47454155]
[1772237121881,0.47177605,82.029,82.001,0.47454155]
[1772237123086,0.47177605,82.028,82.003,0.47454155]
[1772237128403,0.47177605,82.028,82.005,0.47454155]
[1772237130211,0.47177605,82.028,82.007,0.47454155]
[1772237130603,0.2,82.04,82.011,0.47454155]
[1772237131591,0.2,82.04,82.012,12.19333756]
[1772237131786,0.2,82.04,82.013,0.47454155]
[1772237132392,15.50784894,82.04,82.013,0.47454155]
[1772237132594,0.47177605,82.039,82.013,0.47454155]
[1772237133511,0.47177605,82.039,82.015,0.47454155]
[1772237134208,0.47177605,82.029,82.001,12.19493304]
[1772237134395,42.66315609,82.038,81.993,0.47454155]
[1772237134396,0.47177605,82.019,81.993,0.47454155]
[1772237134595,0.47177605,82.019,81.986,30.49266928]
[1772237134596,0.47177605,82.019,81.988,0.47454155]
[1772237136414,0.47177605,82.017,81.989,12.1967581]
[1772237137010,0.47177605,82.017,81.989,12.67129965]
[1772237138798,0.47177605,82.015,81.989,12.67129965]
[1772237142122,0.46468247,82.009,81.984,12.19736699]
[1772237142495,0.46468247,82.009,81.982,0.46566541]
[1772237143617,0.46468247,81.999,81.97,0.46566541]
[1772237144195,0.46468247,81.999,81.969,12.19973404]
[1772237144196,0.46468247,81.998,81.971,12.19943638]
[1772237145214,0.46468247,81.998,81.971,0.46566541]
[1772237145804,3.11852585,82.0,81.971,0.46566541]
[1772237146012,0.46468247,81.999,81.971,0.46566541]
[1772237147320,0.46468247,81.999,81.973,0.46566541]
[1772237150122,0.46468247,81.999,81.974,12.19898992]
[1772237150309,0.46468247,81.999,81.975,0.46566541]
[1772237151311,0.46468247,81.999,81.976,12.1986923]
[1772237151513,0.46468247,81.999,81.977,0.46566541]
[1772237152705,0.46468247,82.015,81.981,0.46566541]
[1772237152905,0.46468247,82.015,81.98,3.11852585]
[1772237152906,0.46468247,82.028,81.991,0.46566541]
[1772237153313,12.65493851,82.033,82.001,0.46566541]
[1772237153706,12.65493851,82.033,82.011,0.46566541]
[1772237153923,0.46468247,82.032,82.011,0.46566541]
[1772237154719,0.46468247,82.038,82.013,0.46566541]
[1772237155415,0.46468247,82.038,82.008,12.65949707]
[1772237155613,0.46468247,82.038,81.995,0.46566541]
[1772237155823,0.46468247,82.009,81.971,0.46566541]
[1772237156027,0.46468247,81.999,81.971,0.46566541]
[1772237156814,3.11852585,81.99,81.971,12.6650671]
[1772237158222,0.46468247,81.992,81.971,12.6650671]
[1772237158424,0.46468247,81.992,81.972,0.46566541]
[1772237158624,0.46468247,81.998,81.972,0.46566541]
[1772237158931,0.46468247,81.998,81.961,42.7032369]
[1772237158932,0.46468247,82.007,81.962,0.28432314]
[1772237159135,0.28432314,82.029,81.961,42.7032369]
[1772237159136,0.46468247,82.021,81.991,0.46566541]
[1772237159316,0.46468247,82.029,82.001,0.46566541]
[1772237159514,12.19072161,82.03,82.001,0.46566541]
[1772237160728,0.2,82.04,82.003,0.46566541]
[1772237160917,0.2,82.04,82.011,0.46566541]
[1772237164321,0.2,82.04,82.012,12.19333756]
[1772237164836,0.2,82.04,82.013,0.46566541]
[1772237166515,0.2,82.04,82.015,0.46566541]
[1772237168434,3.31852585,82.04,82.015,0.46566541]
[1772237170220,3.31852585,82.04,82.017,0.47966339]
[1772237171436,3.31852585,82.04,82.019,0.47966339]
[1772237173639,3.76903078,82.04,82.021,0.47966339]
[1772237175522,0.2,82.05,82.022,0.47966339]
[1772237175723,0.45050493,82.069,82.031,0.47966339]
[1772237176530,0.45050493,82.078,82.041,0.47966339]
[1772237177746,0.45050493,82.076,82.043,0.47966339]
[1772237178520,3.31852585,82.08,82.05,3.11852585]
[1772237178721,3.31852585,82.08,82.051,0.47966339]
[1772237179119,3.76903078,82.08,82.051,0.47966339]
[1772237180341,3.76903078,82.08,82.05,3.11852585]
[1772237180342,3.76903078,82.08,82.053,0.47966339]
[1772237180647,12.63388923,82.079,82.053,0.47966339]
[1772237181358,12.1833843,82.079,82.053,0.47966339]
[1772237181654,3.31852585,82.08,82.053,0.47966339]
[1772237182350,15.50189535,82.08,82.055,0.47966339]
[1772237182743,12.3833695,82.08,82.055,0.47966339]
[1772237183147,12.83387443,82.08,82.055,0.47966339]
[1772237185149,0.45050493,82.079,82.055,0.47966339]
[1772237188756,0.45050493,82.077,82.049,0.47966339]
[1772237190662,0.45050493,82.077,82.05,3.11366729]
[1772237190843,12.18382962,82.076,82.053,0.47966339]
[1772237191043,0.45050493,82.075,82.053,0.47966339]
[1772237191358,12.38330985,82.08,82.053,0.47966339]
[1772237192638,12.38330985,82.08,82.054,12.1870963]
[1772237192958,12.38330985,82.08,82.055,0.47966339]
[1772237193259,0.45050493,82.079,82.055,0.47966339]
[1772237194659,0.45050493,82.077,82.055,0.47966339]
[1772237195162,0.45050493,82.077,82.056,0.47966339]
[1772237197058,0.45050493,82.075,82.056,0.47966339]
[1772237199438,0.45050493,82.075,82.057,12.18665074]
[1772237199755,0.45050493,82.075,82.058,0.47966339]
[1772237201067,12.63454472,82.075,82.058,0.47966339]
[1772237202457,0.45050493,82.075,82.058,0.47966339]
[1772237202858,12.38330788,82.08,82.058,0.47966339]
[1772237203568,12.63752961,82.078,82.058,0.47966339]
[1772237204465,0.45399688,82.077,82.058,0.47966339]
[1772237204958,0.2,82.08,82.061,0.4652015]
[1772237205364,0.2,82.09,82.081,0.4652015]
[1772237212470,0.45399688,82.098,82.08,3.11366729]
[1772237213275,0.45399688,82.098,82.081,0.4652015]
[1772237213463,0.45399688,82.098,82.081,12.18308743]
[1772237213664,0.45399688,82.098,82.082,0.4652015]
[1772237214285,0.45399688,82.098,82.077,0.4652015]
[1772237215070,0.2,82.1,82.069,12.18476472]
[1772237215071,0.45399688,82.096,82.069,12.18476472]
[1772237215455,0.45399688,82.096,82.069,12.64996622]
[1772237215658,0.45399688,82.094,82.069,0.4652015]
[1772237216869,0.45399688,82.092,82.071,0.4652015]
[1772237219165,0.45399688,82.09,82.071,0.4652015]
[1772237221572,0.45399688,82.095,82.073,0.4652015]
[1772237223162,0.45399688,82.095,82.075,0.4652015]
[1772237224063,12.18077377,82.097,82.075,0.4652015]
[1772237224264,0.45399688,82.099,82.075,0.4652015]
[1772237225665,0.45399688,82.099,82.076,12.18382962]
[1772237225985,0.45399688,82.099,82.077,0.4652015]
[1772237227081,0.45399688,82.099,82.08,3.11366729]
[1772237227261,0.45399688,82.099,82.08,3.57886879]
[1772237227462,0.45399688,82.099,82.081,0.4652015]
[1772237228372,0.45399688,82.099,82.081,12.6481662]
[1772237228569,0.45399688,82.099,82.082,0.4652015]
[1772237229687,0.2,82.1,82.082,0.4652015]
[1772237231986,0.66002382,82.1,82.082,0.4652015]
[1772237232290,0.2,82.1,82.084,0.48008833]
[1772237234087,0.2,82.1,82.091,0.48008833]
[1772237237701,0.2,82.11,82.085,12.18249375]
[1772237237702,0.2,82.11,82.093,0.48008833]
[1772237238990,0.2,82.11,82.101,0.48008833]
[1772237239483,0.66002382,82.12,82.101,0.48008833]
[1772237240406,0.2,82.12,82.101,0.48008833]
[1772237241176,0.2,82.12,82.103,0.48008833]
[1772237241781,0.46002382,82.119,82.102,12.17997125]
[1772237242675,0.46002382,82.119,82.103,0.48008833]
[1772237244207,0.2,82.12,82.105,0.48008833]
[1772237244489,0.2,82.13,82.111,0.48008833]
[1772237246672,0.2,82.13,82.112,12.17848791]
[1772237246996,0.46002382,82.129,82.101,0.48008833]
[1772237247790,0.46002382,82.119,82.084,0.48008833]
[1772237247992,0.2,82.13,82.086,0.48008833]
[1772237248297,0.46002382,82.14,82.112,0.48008833]
[1772237248876,0.46002382,82.129,82.093,0.48008833]
[1772237249079,12.17448471,82.139,82.057,0.14216157]
[1772237249080,0.46002382,82.119,82.083,0.48008833]
[1772237250284,0.46002382,82.117,82.085,0.48008833]
[1772237250603,0.46002382,82.117,82.082,0.48008833]
[1772237251103,0.46002382,82.117,82.091,0.48008833]
[1772237252603,0.46002382,82.117,82.09,3.10910393]
[1772237252604,0.46002382,82.117,82.092,12.18145495]
[1772237252804,0.46002382,82.117,82.093,0.48008833]
[1772237253315,0.46002382,82.115,82.093,0.48008833]
[1772237254809,0.46002382,82.113,82.09,3.10910393]
[1772237255105,0.46002382,82.113,82.09,3.58919226]
[1772237255483,0.46002382,82.113,82.077,0.48008833]
[1772237255689,0.46002382,82.113,82.081,0.48008833]
[1772237256506,12.17819129,82.114,82.081,0.48008833]
[1772237256708,12.17819129,82.114,82.091,0.48008833]
[1772237256709,0.46002382,82.114,82.091,0.48008833]
[1772237257798,0.46002382,82.114,82.093,0.48008833]
[1772237258912,12.63758946,82.119,82.095,0.48008833]
[1772237259121,12.63688048,82.123,82.101,0.48008833]
[1772237259295,0.46002382,82.122,82.101,0.48008833]
[1772237260310,12.17685666,82.123,82.08,3.10910393]
[1772237260311,0.47596099,82.119,82.08,3.10910393]
[1772237260703,0.47596099,82.119,82.09,3.10910393]
[1772237261208,0.46162745,82.117,82.09,3.10910393]
[1772237262897,0.46162745,82.117,82.087,0.47137503]
[1772237263194,12.17789468,82.116,82.087,0.47137503]
[1772237263398,0.46162745,82.109,82.071,0.47137503]
[1772237264523,0.46162745,82.099,82.059,30.46576944]
[1772237264814,0.46162745,82.099,82.061,0.47137503]
[1772237265314,0.46162745,82.099,82.071,0.47137503]
[1772237266810,3.10910393,82.1,82.07,3.10910393]
[1772237266811,0.46162745,82.097,82.072,12.65579846]
[1772237267009,0.46162745,82.097,82.073,0.47137503]
[1772237268616,0.46162745,82.097,82.072,12.18442343]
[1772237268617,3.97815716,82.138,82.081,0.47137503]
[1772237268814,0.46162745,82.109,82.081,0.47137503]
[1772237270621,0.46162745,82.107,82.081,0.47137503]
[1772237273104,0.46162745,82.105,82.081,0.47137503]
[1772237274617,0.46162745,82.109,82.081,0.47137503]
[1772237274822,0.46162745,82.107,82.083,0.47137503]
[1772237275747,12.17908121,82.108,82.083,0.47137503]
[1772237276021,12.17908121,82.108,82.082,12.18293901]
[1772237276022,12.17908121,82.108,82.091,0.47137503]
[1772237277419,0.46162745,82.112,82.091,0.47137503]
[1772237277621,12.17863623,82.111,82.091,0.47137503]
[1772237277921,0.46162745,82.11,82.091,0.47137503]
[1772237280910,0.46162745,82.11,82.092,0.47137503]
[1772237281238,12.17808934,82.115,82.092,0.47137503]